bitfinex-derivatives/quotes_BTCF0:USTF0_20251002
["timestamp","ask_amount","ask_price","bid_price","bid_amount"]
[1759407700258,1.71847216,118940.0,118930.0,0.1800137]
[1759407701057,1.71847216,118940.0,118930.0,0.1197698]
[1759407701260,1.71847216,118940.0,118930.0,0.1800137]
[1759407701557,1.71847216,118940.0,118930.0,0.1197698]
[1759407702260,1.71847216,118940.0,118930.0,0.1800137]
[1759407702764,1.71847216,118940.0,118930.0,0.0730139]
[1759407703051,0.0840398,118930.0,118920.0,0.19676454]
[1759407703256,0.31802906,118930.0,118920.0,0.2119572]
[1759407703460,0.31802906,118930.0,118920.0,0.19676073]
[1759407704263,0.31802906,118930.0,118920.0,0.19876073]
[1759407704758,0.31802906,118930.0,118920.0,0.20076073]
[1759407706862,1.07610906,118930.0,118920.0,0.45850036]
[1759407709754,0.34177893,118930.0,118920.0,0.45850036]
[1759407709956,1.09981893,118930.0,118920.0,1.21930036]
[1759407710456,1.09981893,118930.0,118920.0,0.96156073]
[1759407710657,1.09981893,118930.0,118920.0,1.21930036]
[1759407711259,0.34177893,118930.0,118920.0,1.21930036]
[1759407711462,1.09997893,118930.0,118920.0,1.21930036]
[1759407712060,1.09997893,118930.0,118920.0,1.21938818]
[1759407712262,1.09997893,118930.0,118920.0,1.15915399]
[1759407712857,1.01593963,118930.0,118920.0,1.15915399]
[1759407713969,1.09997913,118930.0,118920.0,1.15915399]
[1759407715665,1.09997913,118930.0,118920.0,1.15932467]
[1759407716264,0.34177913,118930.0,118920.0,1.15932467]
[1759407716461,1.09993913,118930.0,118920.0,0.90158504]
[1759407716662,1.09993913,118930.0,118920.0,1.15932467]
[1759407716863,1.09993913,118930.0,118920.0,0.90158504]
[1759407717063,1.09993913,118930.0,118920.0,1.15932467]
[1759407717564,1.08985059,118930.0,118920.0,1.23475533]
[1759407717759,1.08985059,118930.0,118920.0,0.9770157]
[1759407719661,1.08985059,118930.0,118920.0,1.15932467]
[1759407720165,0.8421995,118930.0,118920.0,0.90158504]
[1759407720464,1.09993913,118930.0,118920.0,1.15932467]
[1759407721268,1.09993913,118930.0,118920.0,0.50158504]
[1759407722565,1.09993913,118930.0,118920.0,0.5770157]
[1759407724254,1.09990482,118930.0,118920.0,0.5770157]
[1759407724674,1.09990482,118930.0,118920.0,0.50158504]
[1759407724861,1.09990482,118930.0,118920.0,0.5770157]
[1759407726071,1.09990482,118930.0,118920.0,0.50158504]
[1759407726867,1.09990482,118930.0,118920.0,0.5770157]
[1759407727570,1.08981608,118930.0,118920.0,0.5770157]
[1759407730765,0.0840363,118940.0,118930.0,0.1192493]
[1759407731071,1.09982162,118940.0,118930.0,0.54036484]
[1759407731372,0.8421163,118940.0,118930.0,0.54036484]
[1759407731565,1.09982162,118940.0,118930.0,0.54036484]
[1759407732371,0.34174162,118940.0,118930.0,0.54036484]
[1759407732574,1.09994162,118940.0,118930.0,0.54036484]
[1759407736373,0.34174162,118940.0,118930.0,0.54036484]
[1759407736574,1.09990162,118940.0,118930.0,0.54036484]
[1759407748474,1.09974162,118940.0,118930.0,0.54036484]
[1759407751186,0.34174162,118940.0,118930.0,0.54036484]
[1759407751488,1.09970162,118940.0,118930.0,0.54036484]
[1759407752380,0.8419963,118940.0,118930.0,0.54036484]
[1759407752684,0.25004,118950.0,118940.0,0.13807747]
[1759407752884,1.00808,118950.0,118940.0,0.75658279]
[1759407754078,1.01108,118950.0,118940.0,0.75658279]
[1759407754590,1.01112,118950.0,118940.0,0.75658279]
[1759407754884,1.01112,118950.0,118940.0,0.49887747]
[1759407755089,0.25304,118950.0,118940.0,0.75658279]
[1759407755390,1.01108,118950.0,118940.0,0.75658279]
[1759407755786,1.01108,118950.0,118940.0,0.49887747]
[1759407759186,1.01108,118950.0,118940.0,0.75658279]
[1759407760187,1.01108,118950.0,118940.0,0.81674552]
[1759407761492,0.25304,118950.0,118940.0,0.81674552]
[1759407761691,1.011,118950.0,118940.0,0.81674552]
[1759407762890,1.011,118950.0,118940.0,0.45594552]
[1759407763391,1.011,118950.0,118940.0,1.17754552]
[1759407764081,1.01096,118950.0,118940.0,1.17754552]
[1759407765891,1.01096,118950.0,118940.0,1.18635448]
[1759407766695,0.25304,118950.0,118940.0,1.18635448]
[1759407766992,0.16951559,118950.0,118940.0,1.12619175]
[1759407769793,0.16951559,118950.0,118940.0,1.58631961]
[1759407770899,0.25354069,118950.0,118940.0,1.31980533]
[1759407771596,0.51124601,118950.0,118940.0,1.31980533]
[1759407771796,0.51124601,118950.0,118940.0,0.91980533]
[1759407774091,0.51124601,118950.0,118940.0,0.19820533]
[1759407775197,0.51124601,118950.0,118940.0,0.55900533]
[1759407775493,0.25354069,118950.0,118940.0,0.55900533]
[1759407775691,0.51124601,118950.0,118940.0,0.55900533]
[1759407776797,0.51124601,118950.0,118940.0,0.49887747]
[1759407778099,0.51124601,118950.0,118940.0,0.57430813]
[1759407778996,0.51124601,118950.0,118940.0,0.49887747]
[1759407780195,0.25354069,118950.0,118940.0,0.49887747]
[1759407780401,0.51124601,118950.0,118940.0,0.57430813]
[1759407781599,0.50115919,118950.0,118940.0,0.57430813]
[1759407782505,0.24345387,118950.0,118940.0,0.57430813]
[1759407782702,0.24345387,118950.0,118940.0,0.49887747]
[1759407782904,0.91734877,118950.0,118940.0,0.49887747]
[1759407783102,0.91734877,118950.0,118940.0,0.55914743]
[1759407783702,0.15942877,118950.0,118940.0,0.55914743]
[1759407783903,0.15942877,118950.0,118940.0,0.81685275]
[1759407784115,0.91738877,118950.0,118940.0,0.81685275]
[1759407784310,0.91738877,118950.0,118940.0,1.07424637]
[1759407785206,0.15942877,118950.0,118940.0,1.07424637]
[1759407785410,0.91750877,118950.0,118940.0,1.07424637]
[1759407785609,0.15942877,118950.0,118940.0,1.07424637]
[1759407787017,0.15942877,118950.0,118940.0,1.01397641]
[1759407788118,0.15942877,118950.0,118940.0,1.07425207]
[1759407789009,0.15942877,118950.0,118940.0,1.01397641]
[1759407789809,0.15642877,118950.0,118940.0,1.01397641]
[1759407791520,0.15642877,118950.0,118940.0,1.77197641]
[1759407792017,0.15642877,118950.0,118940.0,1.83224573]
[1759407794419,0.10077054,118950.0,118940.0,2.68524095]
[1759407794617,0.09068485,118950.0,118940.0,2.68524095]
[1759407794819,0.09068485,118950.0,118940.0,2.68528095]
[1759407798525,0.8632142,118980.0,118970.0,0.12296561]
[1759407798728,0.8767842,118980.0,118970.0,0.80150448]
[1759407799419,0.1187442,118980.0,118970.0,0.80150448]
[1759407800030,0.1367442,118980.0,118970.0,0.80150448]
[1759407800624,0.05274,118980.0,118970.0,0.80150448]
[1759407800834,0.05274,118980.0,118970.0,1.05905395]
[1759407801330,0.05274,118980.0,118970.0,0.80150448]
[1759407802030,0.05274,118980.0,118970.0,1.55982448]
[1759407802628,0.018,118980.0,118970.0,0.54395501]
[1759407802818,0.855567,118990.0,118980.0,0.0840041]
[1759407803020,0.876737,118990.0,118980.0,1.04261921]
[1759407804133,0.79874,118990.0,118980.0,1.04261921]
[1759407804528,0.78508494,118990.0,118980.0,1.04261921]
[1759407804733,0.79876494,118990.0,118980.0,1.04261921]
[1759407806737,0.79876494,118990.0,118980.0,0.98250304]
[1759407808430,0.78508494,118990.0,118980.0,1.04261921]
[1759407808625,0.006,118990.0,118980.0,1.05647921]
[1759407808831,0.006,118990.0,118980.0,1.15067933]
[1759407811035,0.006,118990.0,118980.0,1.90903933]
[1759407812833,0.006,118990.0,118980.0,1.15067933]
[1759407813034,0.01968,118990.0,118980.0,1.28580027]
[1759407813227,0.01968,118990.0,118980.0,1.80089921]
[1759407813428,0.01368,118990.0,118980.0,1.80097921]
[1759407813728,0.01368,118990.0,118980.0,1.04261921]
[1759407814432,2.574e-05,118990.0,118980.0,1.04261921]
[1759407815426,0.00258903,119000.0,118990.0,0.01365]
[1759407815632,0.00258903,119000.0,118990.0,1.83132372]
[1759407815829,0.00258903,119000.0,118990.0,1.07300372]
[1759407816023,0.00258903,119000.0,118990.0,1.91588792]
[1759407816230,0.02474,119000.0,118990.0,0.91185583]
[1759407816430,0.0222,119010.0,119000.0,0.1205803]
[1759407816630,0.36373347,119010.0,119000.0,0.75128715]
[1759407817539,0.36673347,119010.0,119000.0,0.75128715]
[1759407817738,0.109184,119010.0,119000.0,1.00883662]
[1759407817937,0.36673347,119010.0,119000.0,1.00883662]
[1759407818140,0.36673347,119010.0,119000.0,0.75128715]
[1759407818338,0.11799699,119010.0,119000.0,0.75128715]
[1759407818943,0.0252,119010.0,119000.0,0.75128715]
[1759407819340,0.0252,119010.0,119000.0,1.00883662]
[1759407821132,0.0222,119010.0,119000.0,1.00883662]
[1759407821847,0.0222,119010.0,119000.0,1.07660091]
[1759407823443,0.0222,119010.0,119000.0,1.06424353]
[1759407825042,0.106183,119010.0,119000.0,1.06424353]
[1759407825344,0.092531,119010.0,119000.0,1.06424353]
[1759407825541,0.008548,119010.0,119000.0,1.06424353]
[1759407825742,0.0925312,119010.0,119000.0,1.06424353]
[1759407826238,0.35008067,119010.0,119000.0,0.73892977]
[1759407828343,0.0925312,119010.0,119000.0,0.73892977]
[1759407828543,0.35008067,119010.0,119000.0,0.73892977]
[1759407828744,0.0925312,119010.0,119000.0,0.73892977]
[1759407828932,0.35008067,119010.0,119000.0,0.73892977]
[1759407829645,0.0925312,119010.0,119000.0,0.73892977]
[1759407829847,0.35008067,119010.0,119000.0,0.73892977]
[1759407832844,0.35008067,119010.0,119000.0,0.99647924]
[1759407833047,0.35008067,119010.0,119000.0,0.73892977]
[1759407835047,0.75008067,119010.0,119000.0,0.4813801]
[1759407835247,0.73642789,119010.0,119000.0,0.4813801]
[1759407835447,0.75868789,119010.0,119000.0,0.73892957]
[1759407836543,0.75868789,119010.0,119000.0,0.39739]
[1759407836748,0.75868789,119010.0,119000.0,0.65493947]
[1759407837143,0.739574,119010.0,119000.0,0.73892997]
[1759407837344,0.739574,119010.0,119000.0,0.4813805]
[1759407837544,0.739574,119010.0,119000.0,0.73892997]
[1759407838050,0.739574,119010.0,119000.0,0.4813805]
[1759407839155,0.739574,119010.0,119000.0,0.73892997]
[1759407839850,1.24042453,119010.0,119000.0,0.73892997]
[1759407840158,1.497974,119010.0,119000.0,0.73892997]
[1759407841457,0.67980947,119010.0,119000.0,0.79904614]
[1759407841655,0.37238701,119020.0,119010.0,0.0839834]
[1759407841855,1.13078701,119020.0,119010.0,0.73751287]
[1759407842059,0.1062411,119020.0,119010.0,0.73751287]
[1759407842361,1.13089991,119020.0,119010.0,0.73751287]
[1759407842550,1.12223057,119020.0,119010.0,0.73751287]
[1759407842754,1.12523057,119020.0,119010.0,0.73751287]
[1759407843155,1.12823057,119020.0,119010.0,0.73751287]
[1759407843658,1.04424947,119020.0,119010.0,0.73751287]
[1759407843858,0.1122359,119020.0,119010.0,0.73751287]
[1759407844057,0.0899759,119020.0,119010.0,0.73751287]
[1759407844255,0.006,119020.0,119010.0,0.73719547]
[1759407844456,0.76448,119020.0,119010.0,0.73719547]
[1759407845264,0.8707159,119020.0,119010.0,0.73719547]
[1759407845961,0.85670608,119020.0,119010.0,0.73719547]
[1759407846159,0.85670608,119020.0,119010.0,0.54007957]
[1759407846561,0.85670608,119020.0,119010.0,0.4799634]
[1759407847662,0.85670608,119020.0,119010.0,0.73719547]
[1759407849361,0.0839762,119020.0,119010.0,0.73719547]
[1759407849561,0.8424962,119020.0,119010.0,0.73719547]
[1759407849865,0.8647562,119020.0,119010.0,0.73719547]
[1759407850165,0.8424962,119020.0,119010.0,0.73719547]
[1759407850364,0.8647562,119020.0,119010.0,0.73719547]
[1759407851161,0.8424962,119020.0,119010.0,0.73719547]
[1759407851361,0.8647562,119020.0,119010.0,0.73719547]
[1759407852256,0.8647562,119020.0,119010.0,0.79731164]
[1759407852970,0.8424962,119020.0,119010.0,0.79731164]
[1759407853169,0.8424962,119020.0,119010.0,0.73719547]
[1759407853865,0.8647562,119020.0,119010.0,0.73719547]
[1759407857272,0.8647562,119020.0,119010.0,0.73719557]
[1759407857665,0.8647562,119020.0,119010.0,0.4799635]
[1759407857970,0.8647562,119020.0,119010.0,0.73719557]
[1759407858159,0.8647562,119020.0,119010.0,0.71332824]
[1759407858467,1.13417827,119020.0,119010.0,0.44298617]
[1759407858668,1.12198827,119020.0,119010.0,0.38287]
[1759407858969,0.8647562,119020.0,119010.0,0.39623]
[1759407859365,0.8647562,119020.0,119010.0,0.71357824]
[1759407860964,0.8647562,119020.0,119010.0,0.79756174]
[1759407863170,0.85110451,119020.0,119010.0,0.79756174]
[1759407864173,0.84102327,119020.0,119010.0,0.73744557]
[1759407864873,0.06024327,119020.0,119010.0,0.73744557]
[1759407865077,0.81868327,119020.0,119010.0,0.81268232]
[1759407865377,0.84008327,119020.0,119010.0,0.81268232]
[1759407866670,0.84008327,119020.0,119010.0,0.55545025]
[1759407866866,0.84008327,119020.0,119010.0,0.81268232]
[1759407867973,0.84008327,119020.0,119010.0,0.73744557]
[1759407868980,0.84004327,119020.0,119010.0,0.73744557]
[1759407869867,0.85372327,119020.0,119010.0,0.4802135]
[1759407870173,0.84004327,119020.0,119010.0,0.73744557]
[1759407871769,0.84004327,119020.0,119010.0,0.73744547]
[1759407872376,0.84004327,119020.0,119010.0,0.4802134]
[1759407872576,0.84004327,119020.0,119010.0,0.73744547]
[1759407872976,0.84004327,119020.0,119010.0,0.79758568]
[1759407873179,0.82639146,119020.0,119010.0,0.79758568]
[1759407874767,0.03636788,119050.0,119010.0,0.79758568]
[1759407874768,5e-05,119050.0,119040.0,0.1183823]
[1759407874968,0.1053482,119060.0,119050.0,0.03442]
[1759407875169,0.78496,119060.0,119050.0,0.73640727]
[1759407875373,0.03569733,119080.0,119070.0,0.1183611]
[1759407875574,0.85862728,119080.0,119070.0,0.66557395]
[1759407875879,0.10383242,119080.0,119070.0,0.66557395]
[1759407876078,0.86787242,119080.0,119070.0,0.04754188]
[1759407876277,1.89809449,119080.0,119070.0,0.01312188]
[1759407876881,1.89809449,119080.0,119070.0,0.02312188]
[1759407877478,1.89809449,119080.0,119070.0,0.02312185]
[1759407878277,1.89809449,119080.0,119070.0,0.01312185]
[1759407878578,1.89809449,119080.0,119070.0,0.006]
[1759407879484,1.49809449,119080.0,119070.0,0.006]
[1759407879682,1.49809449,119080.0,119030.0,1.08394065]
[1759407879683,0.0839623,119040.0,119030.0,0.03442009]
[1759407879983,0.0839623,119040.0,119030.0,0.03442]
[1759407879984,1.47783598,119040.0,119030.0,0.03442]
[1759407880977,1.47779598,119040.0,119030.0,0.03442]
[1759407881183,1.47779598,119040.0,119030.0,0.1183894]
[1759407881373,0.0214,119050.0,119040.0,0.0967923]
[1759407881684,0.8697952,119050.0,119040.0,0.73641437]
[1759407881980,0.8697952,119050.0,119040.0,0.4791823]
[1759407882276,0.0214,119050.0,119040.0,0.4791823]
[1759407882483,0.78588,119050.0,119040.0,0.73641437]
[1759407882678,0.0214,119060.0,119050.0,0.1183753]
[1759407882882,0.0214,119070.0,119060.0,0.1183607]
[1759407883082,1.04315207,119070.0,119060.0,0.4791607]
[1759407883976,1.12709347,119070.0,119060.0,0.4791607]
[1759407884177,1.12709347,119070.0,119060.0,0.4861607]
[1759407884378,0.36257347,119070.0,119060.0,0.4861607]
[1759407884580,1.11348709,119070.0,119060.0,0.4861607]
[1759407884984,0.85625502,119070.0,119060.0,0.4861607]
[1759407885786,0.85625502,119070.0,119060.0,0.4791607]
[1759407886085,0.77223362,119070.0,119060.0,0.4851607]
[1759407886282,0.77215362,119070.0,119060.0,0.4851607]
[1759407886486,0.10812414,119080.0,119070.0,0.1183611]
[1759407886688,0.87252414,119080.0,119070.0,0.1183611]
[1759407886986,1.12975621,119080.0,119070.0,0.1183611]
[1759407887188,0.36535621,119080.0,119070.0,0.1183611]
[1759407887379,0.87264414,119080.0,119070.0,0.1183611]
[1759407887883,0.10812414,119080.0,119070.0,0.4791611]
[1759407888087,0.87272414,119080.0,119070.0,0.4791611]
[1759407888288,0.10812414,119080.0,119070.0,0.4791611]
[1759407888488,0.87268414,119080.0,119070.0,0.4791611]
[1759407888887,0.87268414,119080.0,119070.0,0.4861611]
[1759407889787,0.02418514,119080.0,119070.0,0.74339317]
[1759407889977,0.8637941,119080.0,119070.0,0.74339317]
[1759407890179,0.4601524,119090.0,119080.0,0.1187941]
[1759407890590,1.2245524,119090.0,119080.0,0.1187941]
[1759407890790,0.01542,119090.0,119080.0,0.1187941]
[1759407890986,0.09943131,119100.0,119090.0,0.1187871]
[1759407891289,0.01550691,119100.0,119090.0,0.37601917]
[1759407891493,0.78026691,119100.0,119090.0,0.37601917]
[1759407892181,8.691e-05,119100.0,119090.0,1.13681917]
[1759407892583,8.691e-05,119100.0,119090.0,1.48530832]
[1759407892784,0.00208691,119100.0,119090.0,1.48530832]
[1759407893089,0.70192727,119140.0,119130.0,0.1187589]
[1759407893090,0.01876,119140.0,119130.0,0.1187589]
[1759407893285,0.1026948,119150.0,119140.0,0.1187518]
[1759407893587,0.1026519,119140.0,119130.0,0.1187578]
[1759407894293,1.12776397,119140.0,119130.0,0.1187589]
[1759407894497,0.8705319,119140.0,119130.0,0.1187589]
[1759407894793,0.78664,119140.0,119130.0,0.4795589]
[1759407894990,0.78664,119140.0,119130.0,0.73679097]
[1759407895186,0.79764,119140.0,119130.0,0.1187589]
[1759407895887,0.78664,119140.0,119130.0,0.1187589]
[1759407896093,0.79564,119140.0,119130.0,0.1187589]
[1759407896486,0.78664,119140.0,119130.0,0.1187589]
[1759407896687,0.79464,119140.0,119130.0,0.4795589]
[1759407897591,1.05187207,119140.0,119130.0,0.4795589]
[1759407897796,1.49656387,119140.0,119130.0,0.0838988]
[1759407897995,0.1026588,119130.0,119120.0,0.47485429]
[1759407898287,0.01876,119130.0,119120.0,0.49650429]
[1759407898798,0.01876,119130.0,119120.0,0.4795659]
[1759407899095,0.02476,119130.0,119120.0,0.4795659]
[1759407899295,0.02976,119130.0,119120.0,0.4795659]
[1759407899496,0.02976,119130.0,119120.0,0.1187659]
[1759407900994,0.1136589,119130.0,119120.0,0.03486]
[1759407901196,0.71805146,119130.0,119120.0,0.03486]
[1759407901399,0.46081939,119130.0,119120.0,0.1187656]
[1759407901694,0.01612049,119130.0,119120.0,0.1187656]
[1759407901894,0.78308049,119130.0,119120.0,0.1187656]
[1759407903387,0.78292049,119130.0,119120.0,0.1187656]
[1759407903792,0.86681919,119130.0,119120.0,0.1187656]
[1759407904495,0.86685919,119130.0,119120.0,0.1187656]
[1759407904801,0.0839057,119120.0,119110.0,0.0971191]
[1759407905002,0.4447057,119120.0,119110.0,0.0971228]
[1759407905309,0.70193777,119120.0,119110.0,0.0971228]
[1759407905496,0.70193777,119120.0,119110.0,0.01321]
[1759407906105,1.10393777,119120.0,119110.0,0.01321]
[1759407906403,1.3635774,119120.0,119110.0,0.01321]
[1759407906798,0.083913,119110.0,119100.0,0.01321]
[1759407907004,0.08392,119100.0,119090.0,0.01321]
[1759407907309,0.083927,119090.0,119080.0,0.11879]
[1759407907505,1.46862285,119090.0,119080.0,0.0971441]
[1759407907805,1.7255587,119090.0,119080.0,0.0971441]
[1759407908001,1.73422846,119090.0,119080.0,0.0971441]
[1759407908200,1.54169254,119090.0,119080.0,0.0971441]
[1759407909105,1.54169254,119090.0,119080.0,0.1011441]
[1759407909308,1.54169254,119090.0,119080.0,0.1051441]
[1759407909506,1.53302278,119090.0,119080.0,0.1051441]
[1759407909806,1.08833578,119090.0,119080.0,0.1267941]
[1759407910299,0.8508871,119090.0,119080.0,0.1267941]
[1759407910502,1.17222288,119090.0,119080.0,0.1267941]
[1759407910897,1.53302288,119090.0,119080.0,0.1267941]
[1759407911198,1.15857846,119090.0,119080.0,0.1267941]
[1759407911393,1.51937846,119090.0,119080.0,0.1267941]
[1759407911794,1.51937846,119090.0,119080.0,0.04286]
[1759407912002,1.91937846,119090.0,119080.0,0.008]
[1759407912810,2.262456,119090.0,119080.0,0.008]
[1759407913101,0.07575322,119070.0,119060.0,0.01330473]
[1759407913302,1.524689,119070.0,119060.0,0.0250069]
[1759407913699,1.524689,119070.0,119060.0,0.01330473]
[1759407913894,1.524689,119070.0,119060.0,9.473e-05]
[1759407913895,1.924689,119070.0,119060.0,9.473e-05]
[1759407914094,1.60335322,119070.0,119060.0,9.473e-05]
[1759407914297,2.285489,119070.0,119060.0,9.473e-05]
[1759407914508,2.285489,119070.0,119060.0,0.00609473]
[1759407915301,1.518689,119070.0,119060.0,0.00609473]
[1759407915606,2.285489,119070.0,119060.0,0.00609473]
[1759407916101,2.285449,119070.0,119060.0,0.00609473]
[1759407916498,1.518689,119070.0,119060.0,0.00609473]
[1759407916695,2.35303302,119070.0,119060.0,0.00609473]
[1759407917503,1.58635302,119070.0,119060.0,0.00609473]
[1759407917708,2.35295302,119070.0,119060.0,0.00609473]
[1759407918505,0.3608,119070.0,119060.0,0.12475273]
[1759407918710,0.4447382,119080.0,119070.0,0.1182009]
[1759407918903,1.52175398,119080.0,119070.0,0.1182009]
[1759407919211,1.92175398,119080.0,119070.0,0.1182009]
[1759407919504,0.3608,119100.0,119080.0,0.01306]
[1759407919704,0.02171982,119100.0,119090.0,0.1181869]
[1759407920009,0.76605288,119110.0,119100.0,0.1181798]
[1759407920010,0.76604858,119110.0,119100.0,0.1181798]
[1759407920212,1.53328858,119110.0,119100.0,0.1181798]
[1759407920401,1.54340177,119110.0,119100.0,0.1181798]
[1759407921103,0.77464177,119110.0,119100.0,0.1181798]
[1759407921306,0.68213578,119110.0,119100.0,0.1181798]
[1759407921508,1.13444,119110.0,119100.0,0.1181798]
[1759407921903,1.12944,119110.0,119100.0,0.1181798]
[1759407922109,0.3608,119110.0,119100.0,0.1181798]
[1759407922311,0.76604138,119120.0,119110.0,0.1181727]
[1759407922508,0.3608,119120.0,119110.0,0.1181727]
[1759407922810,1.08985578,119120.0,119110.0,0.4789727]
[1759407923005,1.17376188,119120.0,119110.0,0.1181727]
[1759407923405,1.1825322,119120.0,119110.0,0.1181727]
[1759407923604,1.1885322,119120.0,119110.0,0.1181727]
[1759407923805,1.1955322,119120.0,119110.0,0.1181727]
[1759407924710,0.0839129,119110.0,119100.0,0.1181774]
[1759407924911,0.0839129,119110.0,119100.0,0.01306]
[1759407924912,0.76604868,119110.0,119100.0,0.01306]
[1759407925112,0.08392,119100.0,119090.0,0.096987]
[1759407925306,1.53433578,119100.0,119090.0,0.096987]
[1759407925616,1.53433578,119100.0,119090.0,0.118187]
[1759407926610,1.53733578,119100.0,119090.0,0.118187]
[1759407927609,1.53933578,119100.0,119090.0,0.118187]
[1759407927812,1.218,119100.0,119090.0,0.118187]
[1759407928011,0.3658,119100.0,119090.0,0.118187]
[1759407928212,1.13392,119100.0,119090.0,0.118187]
[1759407928413,1.14192,119100.0,119090.0,0.118187]
[1759407928914,1.22584,119100.0,119090.0,0.118187]
[1759407929124,1.54717578,119100.0,119090.0,0.096987]
[1759407929311,0.0839266,119090.0,119080.0,0.01306]
[1759407929617,0.444727,119090.0,119080.0,0.0969936]
[1759407929918,0.444727,119090.0,119080.0,0.1181936]
[1759407931007,0.447727,119090.0,119080.0,0.1181936]
[1759407931520,0.444727,119090.0,119080.0,0.1181936]
[1759407931720,0.449727,119090.0,119080.0,0.1181936]
[1759407931921,0.444727,119090.0,119080.0,0.1181936]
[1759407932223,0.447727,119090.0,119080.0,0.1181936]
[1759407932616,0.449727,119090.0,119080.0,0.1181936]
[1759407933121,0.005,119090.0,119080.0,0.1181936]
[1759407933421,0.856567,119090.0,119080.0,0.1181936]
[1759407934222,0.851567,119090.0,119080.0,0.43952938]
[1759407934520,0.854567,119090.0,119080.0,0.1181936]
[1759407935019,0.851567,119090.0,119080.0,0.1181936]
[1759407935221,0.853567,119090.0,119080.0,0.1181936]
[1759407936116,0.854567,119090.0,119080.0,0.1181936]
[1759407942022,0.086927,119090.0,119080.0,0.1181936]
[1759407942222,0.854007,119090.0,119080.0,0.1181936]
[1759407942421,0.854007,119090.0,119080.0,0.43952938]
[1759407942924,0.854007,119090.0,119080.0,0.1181936]
[1759407945621,0.84036315,119090.0,119080.0,0.1181936]
[1759407945925,0.0839338,119080.0,119070.0,0.03497]
[1759407946322,0.3409724,119080.0,119070.0,0.2920086]
[1759407946523,0.3409724,119080.0,119070.0,0.3759498]
[1759407947121,0.3409724,119080.0,119070.0,0.01377]
[1759407947122,0.958811,119080.0,119070.0,0.01377]
[1759407947325,0.0839411,119070.0,119060.0,0.03506473]
[1759407947523,1.1075397,119070.0,119060.0,0.29210333]
[1759407948029,1.1075397,119070.0,119060.0,0.03506473]
[1759407948230,1.53270482,119070.0,119060.0,0.03506473]
[1759407948728,1.53270482,119070.0,119060.0,0.01386473]
[1759407948926,1.53270482,119070.0,119060.0,9.473e-05]
[1759407949125,1.93270482,119070.0,119060.0,9.473e-05]
[1759407949331,1.93570482,119070.0,119060.0,9.473e-05]
[1759407949526,1.93570482,119070.0,119060.0,0.01401473]
[1759407949721,1.93270482,119070.0,119060.0,0.01401473]
[1759407950032,1.93770482,119070.0,119060.0,0.03608473]
[1759407950332,1.57682482,119070.0,119060.0,0.12003293]
[1759407950828,1.57682482,119070.0,119060.0,0.03608473]
[1759407950829,1.93762482,119070.0,119060.0,0.03608473]
[1759407955533,1.93726482,119070.0,119060.0,0.03608473]
[1759407956629,1.93726482,119070.0,119060.0,0.01401473]
[1759407956836,1.17114482,119070.0,119060.0,9.473e-05]
[1759407957134,1.95909636,119070.0,119060.0,4.73e-06]
[1759407957934,1.95918636,119070.0,119060.0,4.73e-06]
[1759407958132,3.66214636,119070.0,119060.0,4.73e-06]
[1759407958628,1.19306636,119070.0,119060.0,4.73e-06]
[1759407959039,3.66222636,119070.0,119060.0,4.73e-06]
[1759407960133,1.19306636,119070.0,119060.0,4.73e-06]
[1759407960338,1.55410636,119070.0,119060.0,4.73e-06]
[1759407960542,1.55910636,119070.0,119060.0,4.73e-06]
[1759407960828,1.56510636,119070.0,119060.0,4.73e-06]
[1759407961235,1.24370264,119070.0,119060.0,4.73e-06]
[1759407961440,1.55410636,119070.0,119060.0,4.73e-06]
[1759407961735,0.79106636,119070.0,119060.0,4.73e-06]
[1759407961934,1.55706636,119070.0,119060.0,4.73e-06]
[1759407962238,0.79106636,119070.0,119060.0,4.73e-06]
[1759407962437,1.95698636,119070.0,119060.0,4.73e-06]
[1759407962834,1.19106636,119070.0,119060.0,4.73e-06]
[1759407963033,1.95698636,119070.0,119060.0,4.73e-06]
[1759407963431,0.76923482,119070.0,119060.0,0.01392473]
[1759407963731,0.76923482,119070.0,119060.0,0.11994233]
[1759407963925,1.2138311,119070.0,119060.0,0.51994233]
[1759407964328,1.53523482,119070.0,119060.0,0.51994233]
[1759407964733,0.4478311,119070.0,119060.0,0.51994233]
[1759407964936,1.2140711,119070.0,119060.0,0.51994233]
[1759407965128,1.53547482,119070.0,119060.0,0.43599473]
[1759407965728,1.17467482,119070.0,119060.0,0.43599473]
[1759407965930,0.8532711,119070.0,119060.0,0.51994253]
[1759407967835,0.8532711,119070.0,119060.0,0.43599473]
[1759407969336,0.8502711,119070.0,119060.0,0.43599473]
[1759407971343,1.49038084,119070.0,119060.0,0.03599473]
[1759407974641,1.2110711,119070.0,119060.0,0.03599473]
[1759407974844,1.49038084,119070.0,119060.0,0.03599473]
[1759407975445,1.49338084,119070.0,119060.0,0.03599473]
[1759407977042,1.49038084,119070.0,119060.0,0.03599473]
[1759407977942,1.49038084,119070.0,119060.0,0.01392473]
[1759407978843,1.49038084,119070.0,119060.0,0.03599473]
[1759407979031,1.47673376,119070.0,119060.0,0.03599473]
[1759407980047,1.11593376,119070.0,119060.0,0.11994263]
[1759407980345,0.83662402,119070.0,119060.0,0.03599473]
[1759407980845,0.83562402,119070.0,119060.0,0.11994283]
[1759407981845,0.83562402,119070.0,119060.0,0.01392473]
[1759407982038,1.11493376,119070.0,119060.0,0.01392473]
[1759407983843,1.47573376,119070.0,119060.0,0.01392473]
[1759407984143,0.34969376,119070.0,119060.0,0.12061253]
[1759407984452,0.83522402,119070.0,119060.0,0.52061253]
[1759407985548,0.83522402,119070.0,119060.0,0.52261253]
[1759407985741,0.07038402,119070.0,119060.0,0.52261253]
[1759407986046,0.83522402,119070.0,119060.0,0.88341253]
[1759407987251,0.07038402,119070.0,119060.0,0.88341253]
[1759407987548,9e-05,119070.0,119060.0,1.22249075]
[1759407987756,0.0839401,119080.0,119070.0,0.1199409]
[1759407987757,0.8487801,119080.0,119070.0,0.1199409]
[1759407987947,0.8487801,119080.0,119070.0,0.17994062]
[1759407988143,0.8487801,119080.0,119070.0,0.54074062]
[1759407988638,0.8487801,119080.0,119070.0,1.16005064]
[1759407988838,0.8497801,119080.0,119070.0,0.8807409]
[1759407989043,0.836136,119080.0,119070.0,0.8807409]
[1759407989242,0.071296,119080.0,119070.0,0.94071481]
[1759407989449,0.836256,119080.0,119070.0,0.8807409]
[1759407989753,0.835256,119080.0,119070.0,0.8817409]
[1759407990252,0.835256,119080.0,119070.0,0.94271253]
[1759407992354,0.835256,119080.0,119070.0,1.19972086]
[1759407994652,0.070296,119080.0,119070.0,1.19972086]
[1759407994853,0.834976,119080.0,119070.0,1.19972086]
[1759407997348,0.834976,119080.0,119070.0,0.58191253]
[1759407997549,0.834976,119080.0,119070.0,0.58191243]
[1759407998350,0.84315544,119080.0,119070.0,0.58191243]
[1759407998948,0.82951067,119080.0,119070.0,0.58191243]
[1759407999456,0.82951067,119080.0,119070.0,0.18191243]
[1759408001852,0.82097123,119080.0,119070.0,0.18191243]